fUSD/lending_fUSD_20240301
["ID","MTS","AMOUNT","RATE_DAILY","PERIOD"]
[315929549,1709287846814,-2534.04,0.00021917,2]
[315929550,1709287846823,-1857.64,0.00021917,2]
[315929551,1709287846833,-500.0,0.00021917,2]
[315929552,1709287846843,-500.0,0.00021917,2]
[315929553,1709287846853,-873.27,0.00021917,2]
[315929554,1709287846863,-671.38,0.00021917,2]
[315929555,1709287846872,-500.0,0.00021917,2]
[315929556,1709287846883,-508.15,0.00021917,2]
[315929557,1709287846892,-1134.75,0.00021917,2]
[315929558,1709287846901,-1777.38,0.00021917,2]
[315929559,1709287846911,-3576.81,0.00021917,2]
[315929560,1709287846920,-512.53,0.00021917,2]
[315929561,1709287846929,-500.0,0.00021917,2]
[315929562,1709287846938,-500.0,0.00021917,2]
[315929563,1709287846948,-1664.32,0.00021917,2]
[315929564,1709287846957,-500.0,0.00021917,2]
[315929565,1709287846967,-1140.72,0.00021917,2]
[315929566,1709287846976,-1573.37,0.00021917,2]
[315929567,1709287846985,-585.35,0.00021917,2]
[315929568,1709287846994,-500.0,0.00021917,2]
[315929569,1709287847004,-1431.16,0.00021917,2]
[315929570,1709287847014,-553.43,0.00021917,2]
[315929571,1709287847024,-1147.88,0.00021917,2]
[315929572,1709287847033,-849.35,0.00021917,2]
[315929573,1709287847043,-528.27,0.00021917,2]
[315929574,1709287847053,-324.58122345,0.00021917,2]
[315929575,1709287847062,-1049.99,0.00021917,2]
[315929576,1709287847072,-500.0,0.00021917,2]
[315929577,1709287847082,-697.36,0.00021917,2]
[315929578,1709287847091,-500.0,0.00021917,2]
[315929579,1709287847101,-887.05,0.00021917,2]
[315929580,1709287847111,-500.0,0.00021917,2]
[315929581,1709287847120,-1782.13,0.00021917,2]
[315929582,1709287847131,-9558.77,0.00021917,2]
[315929583,1709287847141,-685.33,0.00021917,2]
[315929584,1709287847150,-633.12,0.00021917,2]
[315929585,1709287847160,-705.0,0.00021917,2]
[315929586,1709287847170,-500.0,0.00021917,2]
[315929587,1709287847179,-500.0,0.00021917,2]
[315929588,1709287847188,-500.0,0.00021917,2]
[315929589,1709287847201,-2426.84,0.00021917,2]
[315929590,1709287847211,-574.05,0.00021917,2]
[315929591,1709287847221,-500.0,0.00021917,2]
[315929592,1709287847231,-500.0,0.00021917,2]
[315929593,1709287847241,-500.0,0.00021917,2]
[315929594,1709287847250,-3172.14,0.00021917,2]
[315929595,1709287847260,-1835.84,0.00021917,2]
[315929596,1709287847270,-879.74,0.00021917,2]
[315929597,1709287847280,-1649.84,0.00021917,2]
[315929598,1709287847290,-814.08,0.00021917,2]
[315929599,1709287847299,-653.29,0.00021917,2]
[315929600,1709287847309,-500.0,0.00021917,2]
[315929601,1709287847318,-690.92,0.00021917,2]
[315929602,1709287847328,-642.07,0.00021917,2]
[315929603,1709287847338,-500.0,0.00021917,2]
[315929604,1709287847347,-500.0,0.00021917,2]
[315929605,1709287847357,-500.0,0.00021917,2]
[315929606,1709287847366,-500.0,0.00021917,2]
[315929607,1709287847378,-903.97,0.00021917,2]
[315929608,1709287847387,-1009.72,0.00021917,2]
[315929609,1709287847397,-1608.54,0.00021917,2]
[315929610,1709287847406,-500.0,0.00021917,2]
[315929611,1709287847416,-3698.77,0.00021917,2]
[315929612,1709287847426,-1272.52,0.00021917,2]
[315929613,1709287847435,-500.0,0.00021917,2]
[315929614,1709287847445,-503.04620248,0.00021917,2]
[315929615,1709287847454,-895.58,0.00021917,2]
[315929616,1709287847464,-1515.97,0.00021917,2]
[315929617,1709287847473,-696.66,0.00021917,2]
[315929618,1709287847484,-1078.49,0.00021917,2]
[315929619,1709287847493,-500.0,0.00021917,2]
[315929620,1709287847503,-607.9,0.00021917,2]
[315929621,1709287847513,-607.9,0.00021917,2]
[315929622,1709287847523,-607.9,0.00021917,2]
[315929623,1709287847533,-500.0,0.00021917,2]
[315929624,1709287847542,-500.0,0.00021917,2]
[315929625,1709287847551,-1761.78,0.00021917,2]
[315929626,1709287847560,-500.0,0.00021917,2]
[315929627,1709287847570,-1210.7,0.00021917,2]
[315929628,1709287847580,-676.36,0.00021917,2]
[315929629,1709287847589,-500.0,0.00021917,2]
[315929630,1709287847599,-500.0,0.00021917,2]
[315929631,1709287847608,-4340.66,0.00021917,2]
[315929632,1709287847618,-1442.9,0.00021917,2]
[315929633,1709287847628,-513.19,0.00021917,2]
[315929634,1709287847637,-500.0,0.00021917,2]
[315929635,1709287847647,-816.44,0.00021917,2]
[315929636,1709287847657,-938.82,0.00021917,2]
[315929637,1709287847666,-877.51,0.00021917,2]
[315929638,1709287847675,-500.0,0.00021917,2]
[315929639,1709287847684,-807.15,0.00021917,2]
[315929640,1709287847694,-500.0,0.00021917,2]
[315929641,1709287847703,-1509.31,0.00021917,2]
[315929642,1709287847712,-500.0,0.00021917,2]
[315929643,1709287847721,-3276.46,0.00021917,2]
[315929644,1709287847730,-1814.43,0.00021917,2]
[315929645,1709287847740,-2158.23,0.00021917,2]
[315929646,1709287847749,-500.0,0.00021917,2]
[315929647,1709287847758,-2436.96,0.00021917,2]
[315929648,1709287847767,-502.66,0.00021917,2]
[315929649,1709287847777,-838.01,0.00021917,2]
[315929650,1709287847787,-500.0,0.00021917,2]
[315929651,1709287847796,-500.0,0.00021917,2]
[315929652,1709287847805,-889.6,0.00021917,2]
[315929653,1709287847815,-4649.77,0.00021917,2]
[315929654,1709287847824,-522.37,0.00021917,2]
[315929655,1709287847835,-500.0,0.00021917,2]
[315929656,1709287847845,-1336.39,0.00021917,2]
[315929657,1709287847855,-861.41,0.00021917,2]
[315929658,1709287847865,-745.74,0.00021917,2]
[315929659,1709287847878,-1935.03,0.00021917,2]
[315929660,1709287847889,-512.92,0.00021917,2]
[315929661,1709287847898,-500.0,0.00021917,2]
[315929662,1709287847908,-585.8,0.00021917,2]
[315929663,1709287847978,-500.0,0.00021917,2]
[315929664,1709287847987,-783.53,0.00021917,2]
[315929665,1709287847997,-500.0,0.00021917,2]
[315929666,1709287848006,-500.0,0.00021917,2]
[315929667,1709287848016,-1862.27,0.00021917,2]
[315929668,1709287848025,-716.2,0.00021917,2]
[315929669,1709287848035,-500.0,0.00021917,2]
[315929670,1709287848045,-871.7,0.00021917,2]
[315929671,1709287848054,-727.34,0.00021917,2]
[315929672,1709287848063,-500.0,0.00021917,2]
[315929673,1709287848072,-708.52,0.00021917,2]
[315929674,1709287848082,-898.35,0.00021917,2]
[315929675,1709287848091,-500.0,0.00021917,2]
[315929676,1709287848100,-500.0,0.00021917,2]
[315929677,1709287848110,-2479.89,0.00021917,2]
[315929678,1709287848119,-1348.22,0.00021917,2]
[315929679,1709287848130,-1802.68,0.00021917,2]
[315929680,1709287848139,-500.0,0.00021917,2]
[315929681,1709287848148,-500.0,0.00021917,2]
[315929682,1709287848158,-974.93,0.00021917,2]
[315929683,1709287848167,-500.0,0.00021917,2]
[315929684,1709287848177,-3603.81,0.00021917,2]
[315929685,1709287848186,-600.95,0.00021917,2]
[315929686,1709287848201,-9610.03,0.00021917,2]
[315929687,1709287848210,-865.04,0.00021917,2]
[315929688,1709287848219,-500.0,0.00021917,2]
[315929689,1709287848228,-500.0,0.00021917,2]
[315929690,1709287848238,-953.66,0.00021917,2]
[315929691,1709287848248,-2838.78,0.00021917,2]
[315929692,1709287848258,-500.0,0.00021917,2]
[315929693,1709287848267,-562.56,0.00021917,2]
[315929694,1709287848277,-500.0,0.00021917,2]
[315929695,1709287848287,-973.31,0.00021917,2]
[315929696,1709287848297,-656.98,0.00021917,2]
[315929697,1709287848306,-6250.49,0.00021917,2]
[315929698,1709287848315,-611.93,0.00021917,2]
[315929699,1709287848324,-7072.65,0.00021917,2]
[315929700,1709287848334,-1112.01,0.00021917,2]
[315929701,1709287848343,-500.0,0.00021917,2]
[315929702,1709287848353,-656.08,0.00021917,2]
[315929703,1709287848363,-500.0,0.00021917,2]
[315929704,1709287848373,-500.0,0.00021917,2]
[315929705,1709287848385,-500.0,0.00021917,2]
[315929706,1709287848394,-592.36,0.00021917,2]
[315929707,1709287848403,-1031.28,0.00021917,2]
[315929708,1709287848413,-500.0,0.00021917,2]
[315929709,1709287848423,-1875.85,0.00021917,2]
[315929710,1709287848432,-570.92,0.00021917,2]
[315929711,1709287848441,-500.0,0.00021917,2]
[315929712,1709287848450,-1764.47,0.00021917,2]
[315929713,1709287848460,-597.76,0.00021917,2]
[315929714,1709287848469,-7328.56,0.00021917,2]
[315929715,1709287848478,-635.83,0.00021918,2]
[315929716,1709287848487,-167.6,0.00021918,2]
[315929717,1709287848496,-153.09,0.00021918,2]
[315929718,1709287848506,-1527.1,0.00021918,2]
[315929719,1709287848515,-200.0,0.00021978,2]
[315929720,1709287848525,-358.39,0.00021981,2]
[315929721,1709287848534,-607.9,0.00021999,2]
[315929722,1709287848543,-64219.38044193,0.00022,2]
[315929723,1709287848553,-23287.68502554,0.00022,2]
[315929724,1709287848562,-612.22801672,0.00022,2]
[315929725,1709287848571,-586.90975074,0.00022,2]
[315929726,1709287848581,-400.0,0.00022,3]
[315929727,1709287848591,-635.83,0.00022033,2]
[315929728,1709287848601,-237.91,0.00022084,2]
[315929729,1709287848611,-20000.0,0.000221,2]
[315929730,1709287848621,-200.0,0.00022132,2]
[315929731,1709287848632,-635.83,0.00022149,2]
[315929732,1709287848641,-285.54,0.00022181,3]
[315929733,1709287848649,-500.0,0.0002219,2]
[315929734,1709287848659,-229.66754738,0.0002219,2]
[315929735,1709287848668,-300.0,0.0002219,2]
[315929736,1709287848676,-300.0,0.0002219,2]
[315929737,1709287848685,-300.0,0.0002219,2]
[315929738,1709287848695,-300.0,0.0002219,2]
[315929739,1709287848704,-300.0,0.0002219,2]
[315929740,1709287848713,-300.0,0.0002219,2]
[315929741,1709287848722,-300.0,0.0002219,2]
[315929742,1709287848731,-607.9,0.0002219,2]
[315929743,1709287848740,-607.9,0.0002219,2]
[315929744,1709287848750,-500.0,0.00022191,2]
[315929745,1709287848759,-744.33,0.00022191,2]
[315929746,1709287848768,-500.0,0.00022191,2]
[315929747,1709287848777,-241.63507369,0.00022191,2]
[315929748,1709287848787,-500.0,0.00022191,2]
[315929749,1709287848796,-500.0,0.00022191,2]
[315929750,1709287848806,-500.0,0.00022191,2]
[315929751,1709287848815,-500.0,0.00022191,2]
[315929752,1709287848824,-500.0,0.00022191,2]
[315929753,1709287848833,-500.0,0.00022191,2]
[315929754,1709287848842,-500.0,0.00022191,2]
[315929755,1709287848851,-500.0,0.00022191,2]
[315929756,1709287848861,-273.96,0.00022191,2]
[315929757,1709287848869,-500.0,0.00022191,2]
[315929758,1709287848880,-500.0,0.00022191,2]
[315929759,1709287848889,-515.49092495,0.00022191,2]
[315929760,1709287848898,-500.0,0.00022191,2]
[315929761,1709287848907,-500.0,0.00022191,2]
[315929762,1709287848916,-500.0,0.00022191,2]
[315929763,1709287848925,-500.0,0.00022191,2]
[315929764,1709287848934,-500.0,0.00022191,2]
[315929765,1709287848943,-500.0,0.00022191,2]
[315929766,1709287848952,-500.0,0.00022191,2]
[315929767,1709287848961,-500.0,0.00022191,2]
[315929768,1709287848970,-500.0,0.00022191,2]
[315929769,1709287848979,-500.0,0.00022191,2]
[315929770,1709287848988,-500.0,0.00022191,2]
[315929771,1709287848998,-385.34002632,0.00022191,2]
[315929772,1709287849012,-500.0,0.00022191,2]
[315929773,1709287849022,-500.0,0.00022191,2]
[315929774,1709287849031,-500.0,0.00022191,2]
[315929775,1709287849040,-500.0,0.00022191,2]
[315929776,1709287849050,-500.0,0.00022191,2]
[315929777,1709287849059,-500.0,0.00022191,2]
[315929778,1709287849069,-500.0,0.00022191,2]
[315929779,1709287849079,-500.0,0.00022191,2]
[315929780,1709287849088,-511.62823907,0.00022191,2]
[315929781,1709287849098,-500.0,0.00022191,2]
[315929782,1709287849108,-500.0,0.00022191,2]
[315929783,1709287849118,-500.0,0.00022191,2]
[315929784,1709287849129,-506.36215734,0.00022191,2]
[315929785,1709287849147,-500.0,0.00022191,2]
[315929786,1709287849160,-500.0,0.00022191,2]
[315929787,1709287849169,-500.0,0.00022191,2]
[315929788,1709287849178,-500.0,0.00022191,2]
[315929789,1709287849189,-500.0,0.00022191,2]
[315929790,1709287849201,-152.25549334,0.00022191,2]
[315929791,1709287849211,-500.0,0.00022191,2]
[315929792,1709287849220,-500.0,0.00022191,2]
[315929793,1709287849231,-500.0,0.00022191,2]
[315929794,1709287849241,-500.0,0.00022191,2]
[315929795,1709287849251,-500.0,0.00022191,2]
[315929796,1709287849261,-500.0,0.00022191,2]
[315929797,1709287849270,-500.0,0.00022191,2]
[315929798,1709287849281,-500.0,0.00022191,2]
[315929799,1709287849290,-500.0,0.00022191,2]
[315929800,1709287849300,-674.3,0.00022191,2]
[315929801,1709287849310,-500.0,0.00022191,2]
[315929802,1709287849319,-500.0,0.00022191,2]
[315929803,1709287849329,-490.13607598,0.00022191,2]
[315929804,1709287849339,-500.0,0.00022191,2]
[315929805,1709287849349,-560.98,0.00022191,2]
[315929806,1709287849358,-500.0,0.00022191,2]
[315929807,1709287849367,-764.82,0.00022191,2]
[315929808,1709287849377,-500.0,0.00022191,2]
[315929809,1709287849386,-500.0,0.00022191,2]
[315929810,1709287849396,-436.09368891,0.00022191,2]
[315929811,1709287849405,-1294.0,0.00022191,2]
[315929812,1709287849415,-500.0,0.00022191,2]
[315929813,1709287849426,-500.0,0.00022191,2]
[315929814,1709287849435,-622.05,0.00022191,2]
[315929815,1709287849445,-500.0,0.00022191,2]
[315929816,1709287849454,-500.0,0.00022191,2]
[315929817,1709287849463,-302.8752146,0.00022191,2]
[315929818,1709287849473,-784.17,0.00022191,2]
[315929819,1709287849483,-500.0,0.00022191,2]
[315929820,1709287849493,-500.0,0.00022191,2]
[315929821,1709287849502,-500.0,0.00022191,2]
[315929822,1709287849512,-500.0,0.00022191,2]
[315929823,1709287849521,-514.3,0.00022191,2]
[315929824,1709287849531,-500.0,0.00022191,2]
[315929825,1709287849540,-500.0,0.00022191,2]
[315929826,1709287849550,-812.44,0.00022191,2]
[315929827,1709287849559,-500.0,0.00022191,2]
[315929828,1709287849568,-500.0,0.00022191,2]
[315929829,1709287849577,-500.0,0.00022191,2]
[315929830,1709287849587,-500.0,0.00022191,2]
[315929831,1709287849596,-855.53,0.00022191,2]
[315929832,1709287849605,-500.0,0.00022191,2]
[315929833,1709287849615,-500.0,0.00022191,2]
[315929834,1709287849624,-502.52424388,0.00022191,2]
[315929835,1709287849635,-500.0,0.00022191,2]
[315929836,1709287849644,-500.0,0.00022191,2]
[315929837,1709287849655,-500.0,0.00022191,2]
[315929838,1709287849664,-500.0,0.00022191,2]
[315929839,1709287849673,-500.0,0.00022191,2]
[315929840,1709287849684,-500.0,0.00022191,2]
[315929841,1709287849693,-500.0,0.00022191,2]
[315929842,1709287849702,-500.0,0.00022191,2]
[315929843,1709287849712,-500.0,0.00022191,2]
[315929844,1709287849722,-500.0,0.00022191,2]
[315929845,1709287849731,-500.0,0.00022191,2]
[315929846,1709287849742,-534.29,0.00022191,2]
[315929847,1709287849751,-500.0,0.00022191,2]
[315929848,1709287849761,-500.0,0.00022191,2]
[315929849,1709287849771,-153.06115752,0.00022191,2]
[315929850,1709287850212,-349.44884248,0.00022191,2]
[315929851,1709287850222,-55.19261323,0.00022191,2]
[315929852,1709287850256,-538.63363099,0.00022191,2]
[315929853,1709287850266,-500.0,0.00022191,2]
[315929854,1709287850275,-297.07147084,0.00022191,2]
[315929855,1709287851156,-266.99471049,0.00020999,2]
[315929856,1709287851168,-232.99528951,0.00020999,2]
[315929857,1709287851178,-89.26177201,0.00021917,2]
[315929858,1709287851190,-410.73822799,0.00021917,2]
[315929859,1709287851201,-530.52,0.00021917,2]
[315929860,1709287851211,-202.92852916,0.00022191,2]
[315929861,1709287851221,-500.0,0.00022191,2]
[315929862,1709287851230,-500.0,0.00022191,2]
[315929863,1709287851241,-500.0,0.00022191,2]
[315929864,1709287851251,-500.0,0.00022191,2]
[315929865,1709287851261,-500.0,0.00022191,2]
[315929866,1709287851272,-500.0,0.00022191,2]
[315929867,1709287851281,-500.0,0.00022191,2]
[315929868,1709287851291,-500.0,0.00022191,2]
[315929869,1709287851301,-500.0,0.00022191,2]
[315929870,1709287851311,-1236.47,0.00022191,2]
[315929871,1709287851322,-500.0,0.00022191,2]
[315929872,1709287851332,-500.0,0.00022191,2]
[315929873,1709287851341,-500.0,0.00022191,2]
[315929874,1709287851351,-500.0,0.00022191,2]
[315929875,1709287851360,-500.0,0.00022191,2]
[315929876,1709287851370,-1086.1,0.00022191,2]
[315929877,1709287851381,-500.0,0.00022191,2]
[315929878,1709287851390,-504.49075985,0.00022191,2]
[315929879,1709287851400,-500.0,0.00022191,2]
[315929880,1709287851411,-578.89,0.00022191,2]
[315929881,1709287851420,-500.0,0.00022191,2]
[315929882,1709287851429,-339.61,0.00022191,2]
[315929883,1709287851438,-500.0,0.00022191,2]
[315929884,1709287851448,-598.29,0.00022191,2]
[315929885,1709287851457,-500.0,0.00022191,2]
[315929886,1709287851466,-500.0,0.00022191,2]
[315929887,1709287851475,-534.24,0.00022191,2]
[315929888,1709287851485,-500.0,0.00022191,2]
[315929889,1709287851612,-532.28099155,0.00022191,2]
[315929890,1709287851622,-512.3,0.00022191,2]
[315929891,1709287851633,-500.0,0.00022191,2]
[315929892,1709287851642,-551.99,0.00022191,2]
[315929893,1709287851651,-500.0,0.00022191,2]
[315929894,1709287851661,-500.0,0.00022191,2]
[315929895,1709287851670,-856.6,0.00022191,2]
[315929896,1709287851680,-500.0,0.00022191,2]
[315929897,1709287851690,-500.0,0.00022191,2]
[315929898,1709287851699,-1044.96,0.00022191,2]
[315929899,1709287851709,-500.0,0.00022191,2]
[315929900,1709287851718,-237.05365584,0.00022191,2]
[315929901,1709287851729,-500.0,0.00022191,2]
[315929902,1709287851738,-500.0,0.00022191,2]
[315929903,1709287851747,-500.0,0.00022191,2]
[315929904,1709287851756,-500.0,0.00022191,2]
[315929905,1709287851766,-500.0,0.00022191,2]
[315929906,1709287851775,-500.0,0.00022191,2]
[315929907,1709287851784,-593.26,0.00022191,2]
[315929908,1709287851794,-500.0,0.00022191,2]
[315929909,1709287851803,-500.0,0.00022191,2]
[315929910,1709287851813,-500.0,0.00022191,2]
[315929911,1709287851821,-500.0,0.00022191,2]
[315929912,1709287851830,-500.0,0.00022191,2]
[315929913,1709287851840,-500.0,0.00022191,2]
[315929914,1709287851849,-500.0,0.00022191,2]
[315929915,1709287851858,-500.0,0.00022191,2]
[315929916,1709287851867,-500.0,0.00022191,2]
[315929917,1709287851876,-757.11,0.00022191,2]
[315929918,1709287851886,-500.0,0.00022191,2]
[315929919,1709287851895,-500.0,0.00022191,2]
[315929920,1709287851905,-500.0,0.00022191,2]
[315929921,1709287851916,-667.78,0.00022191,2]
[315929922,1709287851927,-500.0,0.00022191,2]
[315929923,1709287851937,-500.0,0.00022191,2]
[315929924,1709287851947,-500.0,0.00022191,2]
[315929925,1709287851958,-500.0,0.00022191,2]
[315929926,1709287851967,-500.0,0.00022191,2]
[315929927,1709287851977,-500.0,0.00022191,2]
[315929928,1709287851987,-500.0,0.00022191,2]
[315929929,1709287851997,-500.0,0.00022191,2]
[315929930,1709287852007,-612.56664211,0.00022191,2]
[315929931,1709287852016,-500.0,0.00022191,2]
[315929932,1709287852026,-500.0,0.00022191,2]
[315929933,1709287852035,-500.0,0.00022191,2]
[315929934,1709287852044,-665.81,0.00022191,2]
[315929935,1709287852053,-500.0,0.00022191,2]
[315929936,1709287852063,-601.03,0.00022191,2]
[315929937,1709287852072,-500.0,0.00022191,2]
[315929938,1709287852082,-500.0,0.00022191,2]
[315929939,1709287852091,-500.0,0.00022191,2]
[315929940,1709287852101,-500.0,0.00022191,2]
[315929941,1709287852111,-1072.86,0.00022191,2]
[315929942,1709287852121,-500.0,0.00022191,2]
[315929943,1709287852132,-531.65,0.00022191,2]
[315929944,1709287852142,-500.0,0.00022191,2]
[315929945,1709287852152,-586.00174561,0.00022191,2]
[315929946,1709287852162,-500.0,0.00022191,2]
[315929947,1709287852172,-526.68,0.00022191,2]
[315929948,1709287852182,-500.0,0.00022191,2]
[315929949,1709287852193,-500.0,0.00022191,2]
[315929950,1709287852204,-550.13,0.00022191,2]
[315929951,1709287852213,-500.0,0.00022191,2]
[315929952,1709287852223,-500.0,0.00022191,2]
[315929953,1709287852233,-500.0,0.00022191,2]
[315929954,1709287852243,-500.0,0.00022191,2]
[315929955,1709287852252,-500.0,0.00022191,2]
[315929956,1709287852262,-500.0,0.00022191,2]
[315929957,1709287852271,-1059.73,0.00022191,2]
[315929958,1709287852283,-500.0,0.00022191,2]
[315929959,1709287852295,-803.02,0.00022191,2]
[315929960,1709287852305,-500.0,0.00022191,2]
[315929961,1709287852314,-500.0,0.00022191,2]
[315929962,1709287852323,-500.0,0.00022191,2]
[315929963,1709287852332,-500.0,0.00022191,2]
[315929964,1709287852342,-500.0,0.00022191,2]
[315929965,1709287852351,-514.08,0.00022191,2]
[315929966,1709287852361,-500.0,0.00022191,2]
[315929967,1709287852371,-519.88,0.00022191,2]
[315929968,1709287852380,-547.76,0.00022191,2]
[315929969,1709287852390,-531.91,0.00022191,2]
[315929970,1709287852399,-500.0,0.00022191,2]
[315929971,1709287852409,-500.0,0.00022191,2]
[315929972,1709287852418,-500.0,0.00022191,2]
[315929973,1709287852429,-500.0,0.00022191,2]
[315929974,1709287852439,-500.0,0.00022191,2]
[315929975,1709287852450,-500.0,0.00022191,2]
[315929976,1709287852460,-846.89,0.00022191,2]
[315929977,1709287852470,-500.0,0.00022191,2]
[315929978,1709287852480,-675.45,0.00022191,2]
[315929979,1709287852489,-500.0,0.00022191,2]
[315929980,1709287852499,-500.0,0.00022191,2]
[315929981,1709287852509,-500.0,0.00022191,2]
[315929982,1709287852518,-505.56360261,0.00022191,2]
[315929983,1709287852528,-489.26666586,0.00022191,2]
[315929984,1709287852537,-500.0,0.00022191,2]
[315929985,1709287852546,-500.0,0.00022191,2]
[315929986,1709287852555,-500.0,0.00022191,2]
[315929987,1709287852565,-785.9,0.00022191,2]
[315929988,1709287852574,-500.0,0.00022191,2]
[315929989,1709287852584,-500.0,0.00022191,2]
[315929990,1709287852593,-500.0,0.00022191,2]
[315929991,1709287852603,-597.09,0.00022191,2]
[315929992,1709287852612,-500.0,0.00022191,2]
[315929993,1709287852622,-763.27,0.00022191,2]
[315929994,1709287852631,-500.0,0.00022191,2]
[315929995,1709287852641,-646.93,0.00022191,2]
[315929996,1709287852652,-503.15,0.00022191,2]
[315929997,1709287852661,-500.0,0.00022191,2]
[315929998,1709287852671,-500.0,0.00022191,2]
[315929999,1709287852680,-500.0,0.00022191,2]
[315930000,1709287852689,-500.0,0.00022191,2]
[315930001,1709287852699,-620.22,0.00022191,2]
[315930002,1709287852708,-582.45,0.00022191,2]
[315930003,1709287852717,-500.0,0.00022191,2]
[315930004,1709287852727,-500.0,0.00022191,2]
[315930005,1709287852735,-500.0,0.00022191,2]
[315930006,1709287852745,-500.0,0.00022191,2]
[315930007,1709287852754,-662.43,0.00022191,2]
[315930008,1709287852763,-500.0,0.00022191,2]
[315930009,1709287852772,-157.68,0.00022191,2]
[315930010,1709287852782,-500.0,0.00022191,2]
[315930011,1709287852791,-500.0,0.00022191,2]
[315930012,1709287852800,-500.0,0.00022191,2]
[315930013,1709287852809,-736.41,0.00022191,2]
[315930014,1709287852818,-500.0,0.00022191,2]
[315930015,1709287852828,-500.0,0.00022191,2]
[315930016,1709287852838,-500.0,0.00022191,2]
[315930017,1709287852847,-500.0,0.00022191,2]
[315930018,1709287852857,-500.0,0.00022191,2]
[315930019,1709287852866,-500.0,0.00022191,2]
[315930020,1709287852876,-500.0,0.00022191,2]
[315930021,1709287852888,-500.0,0.00022191,2]
[315930022,1709287852898,-674.2,0.00022191,2]
[315930023,1709287852907,-500.0,0.00022191,2]
[315930024,1709287852917,-579.8,0.00022191,2]
[315930025,1709287852926,-500.0,0.00022191,2]
[315930026,1709287852935,-576.45,0.00022191,2]
[315930027,1709287852945,-500.0,0.00022191,2]
[315930028,1709287852957,-500.0,0.00022191,2]
[315930029,1709287852967,-500.0,0.00022191,2]
[315930030,1709287852978,-873.93,0.00022191,2]
[315930031,1709287852987,-519.32115425,0.00022191,2]
[315930032,1709287852996,-500.0,0.00022191,2]
[315930033,1709287853006,-500.0,0.00022191,2]
[315930034,1709287853016,-532.5,0.00022191,2]
[315930035,1709287853027,-500.0,0.00022191,2]
[315930036,1709287853037,-814.68,0.00022191,2]
[315930037,1709287853046,-359.69699106,0.00022191,2]
[315930038,1709287853055,-500.0,0.00022191,2]
[315930039,1709287853064,-500.0,0.00022191,2]
[315930040,1709287853073,-500.0,0.00022191,2]
[315930041,1709287853082,-642.24,0.00022191,2]
[315930042,1709287853092,-500.0,0.00022191,2]
[315930043,1709287853101,-500.0,0.00022191,2]
[315930044,1709287853110,-551.9,0.00022191,2]
[315930045,1709287853120,-500.0,0.00022191,2]
[315930046,1709287853129,-500.0,0.00022191,2]
[315930047,1709287853139,-730.35,0.00022191,2]
[315930048,1709287853148,-500.0,0.00022191,2]